bitfinex/quotes_BTCUSD_20251209
["timestamp","ask_amount","ask_price","bid_price","bid_amount"]
[1765304271432,0.23691312,93988.0,93987.0,0.00011791]
[1765304271636,0.24191312,93988.0,93987.0,0.00011791]
[1765304273166,0.02912,93988.0,93987.0,0.00011791]
[1765304273375,0.24191312,93988.0,93987.0,0.00011791]
[1765304274242,0.005,93988.0,93987.0,0.00011791]
[1765304274451,0.005,93988.0,93987.0,0.33360616]
[1765304275696,0.005,93988.0,93987.0,0.35490616]
[1765304276098,0.005,93988.0,93987.0,0.26208616]
[1765304277947,0.005,93988.0,93987.0,0.21452616]
[1765304278130,0.005,93988.0,93987.0,0.21291329]
[1765304281291,0.10292,93988.0,93987.0,0.21291329]
[1765304281469,0.10292,93988.0,93987.0,0.00011791]
[1765304281683,0.01064101,93976.0,93969.0,0.0106418]
[1765304281899,0.06399169,93970.0,93963.0,0.01064248]
[1765304282099,0.05526,93964.0,93963.0,0.22349221]
[1765304282329,0.05526,93964.0,93962.0,0.2237149]
[1765304282330,0.05526,93964.0,93962.0,0.00022483]
[1765304282534,0.28591973,93963.0,93962.0,0.00022483]
[1765304282730,0.37053071,93963.0,93962.0,0.00022483]
[1765304284570,0.37253071,93963.0,93962.0,0.00022483]
[1765304284803,0.38053071,93963.0,93962.0,0.00022483]
[1765304288077,0.14559299,93963.0,93962.0,0.00022483]
[1765304288271,0.16243299,93963.0,93962.0,0.00022483]
[1765304288499,0.37528272,93963.0,93962.0,0.00022483]
[1765304289696,0.38527728,93963.0,93962.0,0.00022483]
[1765304290126,0.35844272,93963.0,93962.0,0.00022483]
[1765304290486,0.39737071,93963.0,93962.0,0.00022483]
[1765304291159,0.37528272,93963.0,93962.0,0.00022483]
[1765304292559,0.14559299,93963.0,93962.0,0.00022483]
[1765304292674,0.37528272,93963.0,93962.0,0.00022483]
[1765304293091,0.16243299,93963.0,93962.0,0.00022483]
[1765304293297,0.37528272,93963.0,93962.0,0.00022483]
[1765304293759,0.08307,93963.0,93962.0,0.00022483]
[1765304293895,0.08307,93963.0,93962.0,0.21307683]
[1765304296119,0.01026,93963.0,93962.0,0.2146897]
[1765304296281,0.01,93963.0,93962.0,0.2146897]
[1765304296483,0.02877,93964.0,93963.0,0.21284973]
[1765304296662,0.02877,93964.0,93963.0,0.2144626]
[1765304297728,0.02711,93970.0,93969.0,0.21283614]
[1765304298126,0.12486,93970.0,93969.0,0.21283614]
[1765304299023,0.05185,93970.0,93969.0,0.21283614]
[1765304299459,0.05385,93970.0,93969.0,0.21283614]
[1765304299769,0.06085,93970.0,93969.0,0.21283614]
[1765304300051,0.05185,93970.0,93969.0,0.21283614]
[1765304300653,0.12886,93970.0,93969.0,0.21283614]
[1765304305102,0.05585,93970.0,93969.0,0.21283614]
[1765304305708,0.12886,93970.0,93969.0,0.21283614]
[1765304308125,0.05585,93970.0,93969.0,0.21283614]
[1765304308246,0.12886,93970.0,93969.0,0.21283614]
[1765304308861,0.03111,93970.0,93969.0,0.21444901]
[1765304309470,0.05633,93970.0,93969.0,0.21444901]
[1765304309670,0.12886,93970.0,93969.0,0.21444901]
[1765304311460,0.004,93970.0,93969.0,0.21444901]
[1765304311611,0.004,93970.0,93969.0,0.32900901]
[1765304311809,0.004,93970.0,93969.0,0.35030901]
[1765304312442,0.004,93970.0,93969.0,0.32900901]
[1765304312634,0.004,93970.0,93968.0,0.12002055]
[1765304312836,0.004,93970.0,93969.0,0.27985614]
[1765304313102,1e-08,93970.0,93969.0,0.57055614]
[1765304313451,0.00011918,93976.0,93975.0,0.23412255]
[1765304313647,0.00011918,93976.0,93975.0,0.27984255]
[1765304314659,0.00011918,93976.0,93975.0,0.36852255]
[1765304315432,0.00011918,93976.0,93975.0,0.65922255]
[1765304315772,0.00126158,93999.0,93998.0,0.23407048]
[1765304315993,0.00126158,93999.0,93998.0,0.27979048]
[1765304316197,0.00126158,93999.0,93998.0,0.34863048]
[1765304316952,0.12338158,93999.0,93998.0,0.21277048]
[1765304317159,0.00526158,93999.0,93998.0,0.27979048]
[1765304317359,0.00526158,93999.0,93998.0,0.34863048]
[1765304317565,0.00426158,93999.0,93998.0,0.34863048]
[1765304317968,0.00426158,93999.0,93998.0,0.27979048]
[1765304318396,0.00434608,93999.0,93998.0,0.27979048]
[1765304318601,0.00134608,93999.0,93998.0,0.27979048]
[1765304318973,0.00234608,93999.0,93998.0,0.27979048]
[1765304321004,0.00234608,93999.0,93998.0,0.27979048]
[1765304322883,0.00234608,93999.0,93998.0,0.23407048]
[1765304323415,0.03864608,93999.0,93998.0,0.22961048]
[1765304323630,0.03864608,93999.0,93998.0,0.25091048]
[1765304323762,0.03864608,93999.0,93998.0,0.22961048]
[1765304324564,0.00234608,93999.0,93998.0,0.22961048]
[1765304324760,0.00234608,93999.0,93998.0,0.25091048]
[1765304327892,0.00234608,93999.0,93998.0,0.29663048]
[1765304328878,0.00234608,93999.0,93998.0,0.25091048]
[1765304330075,0.00234608,93999.0,93998.0,0.27780048]
[1765304330423,0.00234608,93999.0,93998.0,0.66312048]
[1765304330862,0.00234608,93999.0,93998.0,1.66312048]
[1765304331293,0.00134608,93999.0,93998.0,1.66312048]
[1765304331444,0.00134608,93999.0,93998.0,1.52332048]
[1765304331648,0.00134608,93999.0,93998.0,1.52732048]
[1765304331853,0.00134608,93999.0,93998.0,1.66712048]
[1765304332805,0.00134608,93999.0,93998.0,1.67012048]
[1765304333000,1e-08,93999.0,93998.0,1.67012048]
[1765304333204,0.0004,94010.0,94009.0,0.52474558]
[1765304333434,0.0004,94010.0,94009.0,0.58977558]
[1765304333632,0.0004,94010.0,94009.0,0.66309558]
[1765304334812,0.0004,94010.0,94009.0,0.66709558]
[1765304335958,0.0004,94010.0,94009.0,0.66509558]
[1765304336114,0.0004,94010.0,94009.0,0.66309558]
[1765304336334,0.0004,94010.0,94009.0,0.66809558]
[1765304336538,0.0004,94010.0,94009.0,0.67209558]
[1765304337540,0.0004,94010.0,94009.0,0.66709558]
[1765304337742,0.0004,94010.0,94009.0,0.67109558]
[1765304338893,0.00070888,94010.0,94009.0,0.67109558]
[1765304340821,0.00070888,94010.0,94009.0,0.65425558]
[1765304340956,0.00070888,94010.0,94009.0,0.67109558]
[1765304341753,0.00070888,94010.0,94009.0,0.66709558]
[1765304341958,0.00070888,94010.0,94009.0,0.54158558]
[1765304342368,0.00070888,94010.0,94009.0,0.37539558]
[1765304342722,0.00070888,94010.0,94009.0,0.66609558]
[1765304342917,0.0004,94030.0,94029.0,0.23400033]
[1765304343122,0.00079706,94030.0,94029.0,0.28219033]
[1765304343320,0.00079706,94030.0,94029.0,0.23400033]
[1765304344643,0.00379706,94030.0,94029.0,0.35551033]
[1765304344841,0.00179706,94030.0,94029.0,0.28219033]
[1765304345344,0.00179706,94030.0,94029.0,0.35323033]
[1765304345566,0.00179706,94030.0,94029.0,0.28319033]
[1765304345890,0.00179706,94030.0,94029.0,0.35423033]
[1765304346084,0.00179706,94030.0,94029.0,0.28319033]
[1765304346310,0.00179706,94030.0,94029.0,0.23500033]
[1765304346596,0.12860706,94030.0,94029.0,0.21370033]
[1765304347155,0.00179706,94030.0,94029.0,0.26120033]
[1765304347379,0.00179706,94030.0,94029.0,0.28250033]
[1765304347900,0.00179706,94030.0,94029.0,0.35354033]
[1765304348443,0.00235853,94030.0,94029.0,0.35354033]
[1765304348684,0.00235853,94030.0,94029.0,0.28250033]
[1765304348888,0.00235853,94030.0,94029.0,0.23500033]
[1765304350306,0.00235853,94030.0,94029.0,0.28250033]
[1765304351787,0.00235853,94030.0,94029.0,0.35354033]
[1765304352428,0.00235853,94030.0,94029.0,0.29934033]
[1765304352924,0.00235853,94030.0,94029.0,0.1301574]
[1765304354129,0.00235853,94030.0,94029.0,0.2011974]
[1765304354335,0.00235853,94030.0,94029.0,0.1301574]
[1765304354540,0.00235853,94030.0,94029.0,0.2011974]
[1765304355105,0.00235853,94030.0,94029.0,0.20493316]
[1765304356060,0.00235853,94030.0,94029.0,0.49563316]
[1765304356234,0.00235853,94030.0,94029.0,0.4918974]
[1765304356438,0.00235853,94030.0,94029.0,0.4908974]
[1765304356975,0.00135853,94030.0,94029.0,0.4928974]
[1765304357190,0.00135853,94030.0,94029.0,0.4948974]
[1765304360026,0.00135853,94030.0,94029.0,1.4948974]
[1765304360393,0.00135853,94030.0,94029.0,1.4928974]
[1765304360594,0.00135853,94030.0,94029.0,0.6366574]
[1765304360823,0.00135853,94030.0,94029.0,0.4820574]
[1765304361187,0.00135853,94030.0,94029.0,0.4928974]
[1765304361356,0.00135853,94030.0,94029.0,0.4968974]
[1765304361812,0.00135853,94030.0,94029.0,0.4948974]
[1765304362033,0.00135853,94030.0,94029.0,0.4988974]
[1765304362450,0.00135853,94030.0,94029.0,0.4948974]
[1765304362616,0.00135853,94030.0,94029.0,0.4908974]
[1765304362830,0.00135853,94030.0,94029.0,0.4938974]
[1765304363071,0.00135853,94030.0,94029.0,0.4968974]
[1765304365243,0.00135853,94030.0,94029.0,0.52881455]
[1765304371895,0.0029714,94030.0,94029.0,0.0495174]
[1765304372104,0.0029714,94030.0,94029.0,0.006]
[1765304372105,0.1281014,94030.0,94029.0,0.006]
[1765304372402,0.34079947,94030.0,94029.0,0.006]
[1765304372601,0.1281014,94030.0,94029.0,0.006]
[1765304372811,0.1281014,94030.0,94026.0,0.01063535]
[1765304372812,0.35143638,94030.0,94026.0,0.01063535]
[1765304372980,0.35143638,94030.0,94026.0,0.21270573]
[1765304372981,0.0512,94027.0,94026.0,0.21270573]
[1765304373195,0.05329014,94027.0,94023.0,0.22334893]
[1765304373386,0.0512,94024.0,94023.0,0.22334893]
[1765304373586,0.05281287,94024.0,94023.0,0.22334893]
[1765304373794,0.12674287,94024.0,94023.0,0.22334893]
[1765304375379,0.12774287,94024.0,94023.0,0.22334893]
[1765304375790,0.13074287,94024.0,94023.0,0.22334893]
[1765304378622,0.13113593,94024.0,94023.0,0.22334893]
[1765304379726,0.00439306,94024.0,94023.0,0.22334893]
[1765304380362,0.05559306,94024.0,94023.0,0.22334893]
[1765304380543,0.12952306,94024.0,94023.0,0.22334893]
[1765304381767,0.00439306,94024.0,94023.0,0.22334893]
[1765304382136,0.12952306,94024.0,94023.0,0.22334893]
[1765304382372,0.00439306,94024.0,94023.0,0.22334893]
[1765304383845,0.00439306,94024.0,94023.0,0.36485893]
[1765304384705,0.00439306,94024.0,94023.0,0.65555893]
[1765304384913,0.00339306,94024.0,94023.0,0.65555893]
[1765304385086,0.00039306,94024.0,94023.0,0.65555893]
[1765304385330,0.00139306,94024.0,94023.0,0.65555893]
[1765304389660,0.00079706,94030.0,94029.0,0.52470033]
[1765304389867,0.00079706,94030.0,94029.0,0.57430033]
[1765304390064,0.00079706,94030.0,94029.0,0.64635033]
[1765304390514,0.00079706,94030.0,94029.0,0.66319033]
[1765304390869,0.00079706,94030.0,94029.0,0.64835033]
[1765304391045,0.00079706,94030.0,94029.0,0.66519033]
[1765304391408,0.00079706,94030.0,94029.0,0.66719033]
[1765304393983,1e-08,94030.0,94029.0,0.66719033]
[1765304394521,1e-08,94040.0,94039.0,1.57427771]
[1765304394742,1e-08,94040.0,94031.0,0.01063479]
[1765304394743,0.03447,94111.0,94069.0,0.26220989]
[1765304394943,0.03447,94119.0,94089.0,0.23386469]
[1765304395156,1e-08,94090.0,94089.0,1.64531469]
[1765304395392,0.06879,94130.0,94109.0,0.312]
[1765304395393,0.0004,94130.0,94109.0,0.312]
[1765304395559,0.06626865,94116.0,94115.0,0.28340597]
[1765304395931,0.06626865,94116.0,94115.0,0.37267597]
[1765304396131,0.06626865,94116.0,94115.0,0.35583597]
[1765304396973,0.06626865,94116.0,94115.0,0.30024597]
[1765304397307,0.06626865,94116.0,94115.0,0.35734597]
[1765304397472,0.06626865,94116.0,94115.0,0.37418597]
[1765304397679,0.0004,94130.0,94129.0,0.23377437]
[1765304397832,0.0004,94130.0,94129.0,0.28337437]
[1765304398233,0.0004,94130.0,94129.0,0.35731437]
[1765304398443,0.0004,94130.0,94129.0,0.37415437]
[1765304398651,0.0004,94130.0,94129.0,0.35731437]
[1765304398867,0.0004,94130.0,94129.0,0.37415437]
[1765304399093,0.0004,94130.0,94129.0,0.66485437]
[1765304399295,0.0004,94130.0,94129.0,0.66585437]
[1765304399695,0.0004,94130.0,94129.0,0.64901437]
[1765304400093,0.00079671,94130.0,94129.0,1.64901437]
[1765304400278,0.00079671,94130.0,94129.0,1.66585437]
[1765304400481,0.00079671,94130.0,94129.0,1.64901437]
[1765304400766,0.08208091,94178.0,94160.0,0.22240441]
[1765304401007,0.00191186,94161.0,94160.0,0.22240441]
[1765304401166,0.05411231,94161.0,94160.0,0.22924441]
[1765304401373,0.05411231,94161.0,94160.0,0.21240441]
[1765304401374,0.00575231,94161.0,94160.0,0.21240441]
[1765304401778,0.00575231,94161.0,94156.0,0.01684]
[1765304401933,0.00575231,94161.0,94160.0,0.001]
[1765304401934,0.07030186,94161.0,94160.0,0.001]
[1765304402138,0.11866186,94161.0,94143.0,0.2907]
[1765304402342,0.00161287,94144.0,94143.0,0.03188096]
[1765304402541,0.00161287,94144.0,94133.0,0.01062326]
[1765304402542,0.04997287,94144.0,94133.0,0.01062326]
[1765304402765,0.01062236,94141.0,94133.0,0.01062326]
[1765304403124,0.01062326,94133.0,94129.0,0.005]
[1765304403330,0.04836,94133.0,94128.0,0.01062383]
[1765304403459,0.04836,94133.0,94130.0,0.0106236]
[1765304403658,0.02639381,94140.0,94138.0,0.21245201]
[1765304403903,0.02639381,94140.0,94131.0,0.01062349]
[1765304403904,0.02639381,94140.0,94132.0,0.01]
[1765304404081,0.04836,94138.0,94132.0,0.02062337]
[1765304404289,0.002,94133.0,94132.0,0.01]
[1765304404493,0.002,94133.0,94131.0,0.03192349]
[1765304404896,0.002,94133.0,94129.0,0.01062371]
[1765304405064,0.0589836,94130.0,94127.0,0.01684]
[1765304405282,0.0589836,94130.0,94110.0,0.7376125]
[1765304405283,0.01062518,94116.0,94112.0,0.0213]
[1765304405641,0.21250223,94117.0,94108.0,0.00766]
[1765304405642,0.01062507,94117.0,94113.0,0.01684]
[1765304405837,0.04836,94126.0,94106.0,0.01]
[1765304405838,0.01062405,94126.0,94120.0,0.01062473]
[1765304406086,0.01062473,94120.0,94114.0,0.01062541]
[1765304406264,0.00329,94111.0,94110.0,0.01684]
[1765304406463,0.03776,94111.0,94110.0,0.00039671]
[1765304406618,0.10615,94111.0,94110.0,0.00039671]
[1765304407020,0.10615,94111.0,94110.0,0.21291397]
[1765304407215,0.03776,94111.0,94110.0,0.21291397]
[1765304407421,0.03447,94111.0,94110.0,0.21291397]
[1765304407809,0.15122,94111.0,94110.0,0.21291397]
[1765304408014,0.15122,94111.0,94110.0,0.00039671]
[1765304408214,0.15366012,94111.0,94110.0,0.00039671]
[1765304409063,0.15366012,94111.0,94110.0,0.00139671]
[1765304409260,0.15866012,94111.0,94110.0,0.21391397]
[1765304409461,0.09027012,94111.0,94110.0,0.21391397]
[1765304409642,0.09027012,94111.0,94110.0,0.21291397]
[1765304409870,0.01044012,94111.0,94110.0,0.21291397]
[1765304410071,0.01044012,94111.0,94110.0,0.23421397]
[1765304410272,0.00244012,94111.0,94110.0,0.23421397]
[1765304410699,0.00744012,94111.0,94110.0,0.23421397]
[1765304410859,0.00244012,94111.0,94110.0,0.23421397]
[1765304411259,0.00244012,94111.0,94110.0,0.23521397]
[1765304411466,0.12543012,94111.0,94110.0,0.00039671]
[1765304411688,0.12843012,94111.0,94110.0,0.00039671]
[1765304412264,0.12543012,94111.0,94110.0,0.00039671]
[1765304413282,0.12643012,94111.0,94110.0,0.00039671]
[1765304413719,0.12843012,94111.0,94110.0,0.00039671]
[1765304414079,0.44121811,94111.0,94110.0,0.00039671]
[1765304414792,0.5037411,94111.0,94110.0,0.00039671]
[1765304414989,0.5007411,94111.0,94110.0,0.00039671]
[1765304415255,0.5057411,94111.0,94110.0,0.00039671]
[1765304415532,0.5107411,94111.0,94110.0,0.00039671]
[1765304417501,0.5107411,94111.0,94097.0,0.01062733]
[1765304417502,0.01062981,94075.0,94068.0,0.0106306]
[1765304417729,0.22323878,94070.0,94068.0,8.021e-05]
[1765304417975,0.07296,94069.0,94068.0,8.021e-05]
[1765304418154,0.14723,94069.0,94068.0,8.021e-05]
[1765304418931,0.14535,94069.0,94068.0,8.021e-05]
[1765304419539,0.14835,94069.0,94068.0,8.021e-05]
[1765304419741,0.14835,94069.0,94052.0,0.21264668]
[1765304419742,0.06252299,94063.0,94033.0,0.01063456]
[1765304419967,0.01063388,94039.0,94033.0,8.032e-05]
[1765304420144,0.01063377,94040.0,94034.0,0.01063445]
[1765304420341,0.01063399,94038.0,94033.0,8.032e-05]
[1765304420548,0.05001,94034.0,94033.0,8.032e-05]
[1765304420743,0.12111,94034.0,94033.0,8.032e-05]
[1765304421079,0.12111,94034.0,94033.0,0.00608032]
[1765304421648,0.12111,94034.0,94033.0,8.032e-05]
[1765304421849,0.12111,94034.0,94033.0,0.00308032]
[1765304422638,0.05001,94034.0,94033.0,0.00308032]
[1765304423063,0.05001,94034.0,94033.0,0.00808032]
[1765304424094,0.12111,94034.0,94033.0,0.00808032]
[1765304426035,0.12111,94034.0,94033.0,0.00308032]
[1765304426452,0.01688,94051.0,94047.0,0.01063298]
[1765304426620,0.02912539,94051.0,94048.0,0.01063286]
[1765304426955,0.02912539,94051.0,94036.0,0.01063422]
[1765304426956,0.01063343,94043.0,94036.0,0.01063422]
[1765304427082,0.01063354,94042.0,94038.0,0.01063399]
[1765304427292,0.08334641,94042.0,94038.0,0.22331322]
[1765304427605,0.05001,94039.0,94038.0,0.22331322]
[1765304427802,0.12111,94039.0,94038.0,0.22331322]
[1765304428028,0.12272287,94039.0,94038.0,0.22331322]
[1765304428390,0.12272287,94039.0,94038.0,0.07511318]
[1765304428798,0.1241439,94039.0,94038.0,0.07511318]
[1765304429259,0.00142103,94039.0,94038.0,0.07511318]
[1765304429419,0.00142103,94039.0,94038.0,0.14805652]
[1765304430158,0.00042103,94039.0,94038.0,0.14805652]
[1765304430375,0.00042103,94039.0,94038.0,0.21973652]
[1765304430587,0.00042103,94039.0,94038.0,0.50671318]
[1765304430940,0.00042103,94039.0,94038.0,0.50871318]
[1765304431318,0.00042103,94039.0,94038.0,0.50971318]
[1765304431536,0.00042103,94039.0,94038.0,0.51771318]
[1765304431718,0.00042103,94039.0,94038.0,0.51471318]
[1765304432165,0.00042103,94039.0,94038.0,1.51471318]
[1765304432810,0.0711,94086.0,94077.0,0.21259181]
[1765304433070,0.0711,94086.0,94072.0,0.01063015]
[1765304433071,0.08172959,94077.0,94072.0,0.01063015]
[1765304433269,0.01063026,94071.0,94067.0,0.22324336]
[1765304433448,0.02639381,94070.0,94068.0,0.0106306]
[1765304433676,0.02639381,94070.0,94068.0,0.22324249]
[1765304433677,0.09749381,94070.0,94068.0,0.22324249]
[1765304433867,0.05001,94069.0,94068.0,0.22324231]
[1765304434087,0.12195173,94069.0,94068.0,0.22332263]
[1765304435933,0.1235646,94069.0,94068.0,8.032e-05]
[1765304436140,0.44717928,94069.0,94068.0,8.032e-05]
[1765304436362,0.44717928,94069.0,94035.0,0.01063433]
[1765304436363,0.71148547,94069.0,94035.0,0.01063433]
[1765304436570,0.01063411,94037.0,94029.0,0.01063501]
[1765304436811,0.21269355,94032.0,94027.0,0.22334002]
[1765304437018,0.0711,94037.0,94035.0,0.21268612]
[1765304437226,0.03175,94038.0,94037.0,0.21268224]
[1765304437648,0.08176,94038.0,94037.0,0.21668224]
[1765304437860,0.15297883,94038.0,94037.0,0.21268224]
[1765304438070,0.00011883,94038.0,94037.0,0.21268224]
[1765304438274,0.00011883,94038.0,94037.0,0.23398224]
[1765304439957,0.00411883,94038.0,94037.0,0.21268224]
[1765304440370,0.00211883,94038.0,94037.0,0.21268224]
[1765304440561,0.12322883,94038.0,94037.0,0.21268224]
[1765304442132,0.12322883,94038.0,94034.0,0.01063445]
[1765304442133,0.1248417,94038.0,94034.0,0.01063445]
[1765304442420,0.01063524,94027.0,94020.0,0.01063603]
[1765304442723,0.05162287,94021.0,94018.0,0.01063626]
[1765304442850,0.00161287,94021.0,94018.0,0.01063626]
[1765304443088,0.05001,94019.0,94018.0,0.01063626]
[1765304443492,0.12111,94019.0,94018.0,0.01063626]
[1765304444253,0.12111,94019.0,94018.0,0.01163626]
[1765304444386,0.03175,94026.0,94023.0,0.01063569]
[1765304444584,0.05001,94024.0,94023.0,0.01063569]
[1765304444806,0.05001,94024.0,94023.0,0.22334733]
[1765304445017,0.12111,94024.0,94023.0,0.22334733]
[1765304445237,0.05001,94024.0,94023.0,0.22334733]
[1765304445437,0.03175,94026.0,94025.0,0.21270938]
[1765304446644,0.03475,94026.0,94025.0,0.21270938]
[1765304446881,0.003,94026.0,94025.0,0.21270938]
[1765304447051,0.03599,94032.0,94031.0,0.21269581]
[1765304447571,0.00011883,94038.0,94037.0,0.21268224]
[1765304448001,0.00011883,94038.0,94036.0,0.21268427]
[1765304448002,0.02517731,94038.0,94036.0,0.21268427]
[1765304448222,0.05001,94037.0,94036.0,0.21268427]
[1765304448439,0.12111,94037.0,94036.0,0.21268427]
[1765304449453,0.12411,94037.0,94036.0,0.21268427]
[1765304449831,0.003,94037.0,94036.0,0.21268427]
[1765304450011,0.004,94037.0,94036.0,0.21268427]
[1765304450607,0.003,94037.0,94036.0,0.21268427]
[1765304451155,0.12066,94037.0,94036.0,0.21268427]
[1765304451567,0.11766,94037.0,94036.0,0.21268427]
[1765304451926,0.11966,94037.0,94036.0,0.21268427]
[1765304452170,0.11766,94037.0,94036.0,0.21268427]
[1765304452373,0.12066,94037.0,94036.0,0.21268427]
[1765304452926,0.12066,94037.0,94036.0,0.2126845]
[1765304453177,0.12066,94037.0,94035.0,0.34332045]
[1765304453474,0.14405381,94036.0,94035.0,0.34332045]
[1765304453678,0.14405381,94036.0,94035.0,0.13063433]
[1765304453854,0.14405381,94036.0,94035.0,0.01063433]
[1765304454058,0.14405381,94036.0,94035.0,0.22332109]
[1765304455050,0.00011883,94038.0,94037.0,0.21268224]
[1765304455293,0.00011883,94038.0,94037.0,0.23398224]
[1765304455469,0.11777883,94038.0,94037.0,0.21268224]
[1765304455808,0.04703883,94038.0,94037.0,0.21268224]
[1765304456011,0.00011883,94038.0,94037.0,0.21268224]
[1765304456634,0.11977883,94038.0,94037.0,0.21268224]
[1765304457559,0.11777883,94038.0,94037.0,0.21268224]
[1765304457977,0.12077883,94038.0,94037.0,0.21268224]
[1765304458180,0.11777883,94038.0,94037.0,0.21268224]
[1765304458628,0.11977883,94038.0,94037.0,0.21268224]
[1765304458798,0.1193917,94038.0,94037.0,0.21268224]
[1765304459203,0.1223917,94038.0,94037.0,0.21268224]
[1765304459416,0.00311883,94038.0,94037.0,0.28008224]
[1765304459817,0.00311883,94038.0,94037.0,0.30138224]
[1765304460184,0.00311883,94038.0,94037.0,0.25086224]
[1765304460711,0.00011883,94038.0,94037.0,0.25086224]
[1765304461138,0.00211883,94038.0,94037.0,0.25086224]
[1765304461658,0.00211883,94038.0,94037.0,0.21268224]
[1765304461828,0.11977883,94038.0,94037.0,0.21268224]
[1765304462054,0.04903883,94038.0,94037.0,0.21268224]
[1765304462379,0.04703883,94038.0,94037.0,0.21268224]
[1765304462755,0.04903883,94038.0,94037.0,0.21268224]
[1765304462964,0.04903883,94038.0,94037.0,0.21368224]
[1765304463383,0.00211883,94038.0,94037.0,0.23498224]
[1765304463566,0.00211883,94038.0,94037.0,0.65082224]
[1765304463909,0.00211883,94038.0,94037.0,1.65082224]
[1765304464471,0.00011883,94038.0,94037.0,1.65082224]
[1765304464677,1e-08,94038.0,94037.0,1.65282224]
[1765304464877,0.00022451,94047.0,94037.0,1.65282224]
[1765304464878,1e-08,94047.0,94046.0,1.57482188]
[1765304465195,1e-08,94047.0,94046.0,1.59170188]
[1765304465402,1e-08,94047.0,94046.0,1.66345188]
[1765304466100,1e-08,94047.0,94046.0,1.66845188]
[1765304466682,1e-08,94047.0,94046.0,1.66345188]
[1765304466884,1e-08,94047.0,94046.0,1.66845188]
[1765304467961,1e-08,94047.0,94046.0,1.67445188]
[1765304468191,1e-08,94047.0,94046.0,1.66845188]
[1765304468380,1e-08,94047.0,94046.0,1.66345188]
[1765304468603,1e-08,94047.0,94046.0,1.67145188]
[1765304468801,1e-08,94047.0,94046.0,1.66745188]
[1765304469007,1e-08,94047.0,94046.0,1.66645188]
[1765304469373,1e-08,94047.0,94046.0,1.67045188]
[1765304472198,1e-08,94047.0,94046.0,1.65357188]
[1765304472429,1e-08,94047.0,94046.0,1.67045188]
[1765304472629,1e-08,94047.0,94046.0,0.24096188]
[1765304472874,1e-08,94047.0,94046.0,0.24654188]
[1765304473056,1e-08,94047.0,94046.0,0.23654188]
[1765304473292,1e-08,94047.0,94046.0,0.21966188]
[1765304473490,1e-08,94047.0,94046.0,0.23654188]
[1765304473694,1e-08,94047.0,94046.0,0.23354188]
[1765304474011,1e-08,94047.0,94046.0,0.25384188]
[1765304474250,1e-08,94047.0,94046.0,0.25084188]
[1765304474480,1e-08,94047.0,94046.0,0.25484188]
[1765304474899,1e-08,94047.0,94046.0,0.25084188]
[1765304475100,1e-08,94047.0,94046.0,0.25184188]
[1765304476597,1e-08,94047.0,94046.0,0.23054188]
[1765304476798,1e-08,94047.0,94046.0,0.25184188]
[1765304477215,0.11883001,94047.0,94046.0,0.21366188]
[1765304477621,0.08693717,94047.0,94046.0,0.21366188]
[1765304477824,0.035,94049.0,94048.0,0.21265736]
[1765304478414,0.035,94064.0,94061.0,0.01063139]
[1765304478617,0.035,94064.0,94063.0,0.21262345]
[1765304479207,0.15496,94064.0,94063.0,0.21262345]
[1765304479640,0.03573,94073.0,94072.0,0.21260311]
[1765304479849,0.03599,94081.0,94078.0,0.01062947]
[1765304479850,0.03573,94079.0,94078.0,0.01062947]
[1765304480059,0.03573,94079.0,94078.0,0.22321902]
[1765304480060,0.03584905,94079.0,94078.0,0.22321902]
[1765304480268,0.08343905,94079.0,94078.0,0.22321902]
[1765304480687,0.15569905,94079.0,94078.0,0.22321902]
[1765304481116,0.01062981,94075.0,94070.0,0.22323648]
[1765304481323,0.02191234,94078.0,94075.0,0.01062981]
[1765304481525,0.01063004,94073.0,94070.0,0.01063038]
[1765304481748,0.01063004,94073.0,94069.0,0.01063049]
[1765304481955,0.07237,94073.0,94070.0,0.01063038]
[1765304482164,0.07398287,94073.0,94071.0,0.21260537]
[1765304482319,0.04759,94072.0,94071.0,0.21260537]
[1765304482727,0.01063038,94070.0,94060.0,0.01063151]
[1765304482962,0.08297,94061.0,94060.0,0.21263023]
[1765304483154,0.07226,94072.0,94060.0,0.21263023]
[1765304483155,0.07237,94071.0,94070.0,0.21260763]
[1765304483353,0.02016244,94075.0,94072.0,0.21260311]
[1765304483354,0.01462981,94075.0,94072.0,0.21260311]
[1765304483692,0.04920287,94073.0,94072.0,0.21260311]
[1765304483894,0.12446287,94073.0,94070.0,0.01063038]
[1765304484043,0.02639381,94072.0,94071.0,0.21260327]
[1765304484252,0.02639381,94072.0,94066.0,0.01063083]
[1765304484253,0.09876381,94072.0,94066.0,0.01063083]
[1765304484451,0.003,94071.0,94069.0,0.21260922]
[1765304484707,0.00161287,94073.0,94072.0,0.21260311]
[1765304484708,0.001,94073.0,94072.0,0.21260311]
[1765304484908,0.001,94073.0,94072.0,0.22948311]
[1765304485044,0.004,94073.0,94072.0,0.22948311]
[1765304485242,0.001,94073.0,94072.0,0.22948311]
[1765304485653,0.001,94073.0,94072.0,0.25078311]
[1765304485874,0.001,94073.0,94072.0,0.22948311]
[1765304486079,0.03573,94078.0,94077.0,0.21259181]
[1765304486514,0.00011905,94079.0,94078.0,0.21258955]
[1765304487673,0.00211905,94079.0,94078.0,0.21258955]
[1765304488072,0.08543905,94079.0,94078.0,0.21258955]
[1765304490514,0.00211905,94079.0,94078.0,0.21258955]
[1765304490757,0.00301677,94079.0,94078.0,0.21258955]
[1765304491537,0.15870677,94079.0,94078.0,0.21258955]
[1765304491737,0.15670677,94079.0,94078.0,0.21258955]
[1765304492136,0.15870677,94079.0,94078.0,0.21258955]
[1765304493386,0.15670677,94079.0,94078.0,0.21258955]
[1765304493617,0.15870677,94079.0,94078.0,0.21258955]
[1765304493814,0.08633677,94079.0,94078.0,0.21258955]
[1765304494023,0.03674677,94079.0,94078.0,0.23388955]
[1765304494233,0.00101677,94079.0,94078.0,0.21258955]
[1765304494427,0.00401677,94079.0,94078.0,0.21258955]
[1765304494832,0.00401677,94079.0,94078.0,0.35042955]
[1765304495257,0.00101677,94079.0,94078.0,0.35042955]
[1765304495899,0.00101677,94079.0,94078.0,0.64112955]
[1765304496228,0.00101677,94079.0,94078.0,1.64112955]
[1765304496378,0.00101677,94079.0,94078.0,1.64212955]
[1765304496583,0.00101677,94079.0,94078.0,1.20402955]
[1765304496809,0.00201677,94079.0,94078.0,0.65800955]
[1765304496986,0.00101677,94079.0,94078.0,0.66100955]
[1765304497209,0.00101677,94079.0,94078.0,0.59131955]
[1765304497371,0.00101677,94079.0,94078.0,0.59431955]
[1765304497577,0.00101677,94079.0,94078.0,0.59131955]
[1765304497780,0.00101677,94079.0,94078.0,0.59331955]
[1765304498233,0.00101677,94079.0,94078.0,0.58831955]
[1765304498514,0.00101677,94079.0,94078.0,0.65800955]